fUST/lending_fUST_20250709
["ID","MTS","AMOUNT","RATE_DAILY","PERIOD"]
[370461677,1752029454355,-2130.94,0.00020821,2]
[370461678,1752029454365,-297.89662517,0.00020821,2]
[370461679,1752029454374,-407.55006154,0.00020821,2]
[370461680,1752029454384,-529.48,0.00020821,2]
[370461681,1752029454394,-2829.380721,0.00020821,2]
[370461682,1752029454405,-327.636252,0.00020821,2]
[370461683,1752029454414,-460.0,0.00020821,2]
[370461684,1752029454424,-2829.380721,0.00020821,2]
[370461685,1752029454434,-1268.98,0.00020821,2]
[370461686,1752029454444,-327.636252,0.00020821,2]
[370461687,1752029454455,-460.0,0.00020821,2]
[370461688,1752029454465,-619.65,0.00020821,2]
[370461689,1752029454474,-460.0,0.00020821,2]
[370461690,1752029454484,-2512.11,0.00020821,2]
[370461691,1752029454494,-682.29,0.00020821,2]
[370461692,1752029454503,-1065.93,0.00020821,2]
[370461693,1752029454513,-844.89,0.00020821,2]
[370461694,1752029454523,-495.22,0.00020821,2]
[370461695,1752029454533,-460.0,0.00020821,2]
[370461696,1752029454543,-814.16,0.00020821,2]
[370461697,1752029454553,-185.924571,0.00020821,2]
[370461698,1752029454562,-460.0,0.00020821,2]
[370461699,1752029454572,-460.0,0.00020821,2]
[370461700,1752029454582,-460.0,0.00020821,2]
[370461701,1752029454592,-460.0,0.00020821,2]
[370461702,1752029454601,-151.0,0.00020821,2]
[370461703,1752029454611,-460.0,0.00020821,2]
[370461704,1752029454621,-772.56,0.00020821,2]
[370461705,1752029454631,-495.07,0.00020821,2]
[370461706,1752029454641,-460.0,0.00020821,2]
[370461707,1752029454652,-804.53,0.00020821,2]
[370461708,1752029454662,-508.66,0.00020821,2]
[370461709,1752029454672,-460.0,0.00020821,2]
[370461710,1752029454682,-1018.28,0.00020821,2]
[370461711,1752029454692,-460.0,0.00020821,2]
[370461712,1752029454703,-429.891733,0.00020864,2]
[370461713,1752029454713,-4327.15712278,0.00020934,4]
[370461714,1752029454723,-151.0,0.00020935,2]
[370461715,1752029454733,-151.647156,0.00020935,2]
[370461716,1752029454744,-151.0,0.00020935,2]
[370461717,1752029454754,-151.0,0.00020935,2]
[370461718,1752029454764,-153.888293,0.00020935,2]
[370461719,1752029454775,-151.0,0.00020935,2]
[370461720,1752029454785,-151.0,0.00020935,2]
[370461721,1752029454796,-151.0,0.00020935,2]
[370461722,1752029454806,-191.589992,0.00020935,2]
[370461723,1752029454816,-191.589992,0.00020935,2]
[370461724,1752029454826,-429.891733,0.0002096,2]
[370461725,1752029454837,-429.891733,0.00021056,2]
[370461726,1752029454847,-198.245192,0.00021068,2]
[370461727,1752029454857,-198.245192,0.00021068,2]
[370461728,1752029454868,-151.0,0.00021068,2]
[370461729,1752029454879,-151.0,0.00021068,2]
[370461730,1752029454889,-151.0,0.00021068,2]
[370461731,1752029454900,-200.208506,0.00021068,2]
[370461732,1752029454911,-200.208506,0.00021068,2]
[370461733,1752029454922,-257.595622,0.00021068,2]
[370461734,1752029454932,-257.595622,0.00021068,2]
[370461735,1752029454943,-631.319459,0.00021068,2]
[370461736,1752029454954,-631.319459,0.00021068,2]
[370461737,1752029454965,-460.0,0.00021095,2]
[370461738,1752029455100,-191.90155478,0.00021095,2]
[370461739,1752029455111,-151.0,0.00021095,2]
[370461740,1752029455122,-460.0,0.00021095,2]
[370461741,1752029455131,-460.0,0.00021095,2]
[370461742,1752029455142,-460.0,0.00021095,2]
[370461743,1752029455153,-151.0,0.00021095,2]
[370461744,1752029455164,-573.72,0.00021095,2]
[370461745,1752029455175,-151.0,0.00021095,2]
[370461746,1752029455190,-483.39,0.00021095,2]
[370461747,1752029455201,-460.0,0.00021095,2]
[370461748,1752029455211,-460.0,0.00021095,2]
[370461749,1752029455222,-460.0,0.00021095,2]
[370461750,1752029455233,-460.0,0.00021095,2]
[370461751,1752029455243,-479.03,0.00021095,2]
[370461752,1752029455254,-460.0,0.00021095,2]
[370461753,1752029455264,-460.0,0.00021095,2]
[370461754,1752029455274,-812.99,0.00021095,2]
[370461755,1752029455283,-3032.81,0.00021095,2]
[370461756,1752029455293,-2302.41,0.00021095,2]
[370461757,1752029455303,-1488.7,0.00021095,2]
[370461758,1752029455313,-460.0,0.00021095,2]
[370461759,1752029455324,-460.0,0.00021095,2]
[370461760,1752029455334,-460.0,0.00021095,2]
[370461761,1752029455345,-763.27,0.00021095,2]
[370461762,1752029455355,-460.0,0.00021095,2]
[370461763,1752029455365,-526.62,0.00021095,2]
[370461764,1752029455375,-460.0,0.00021095,2]
[370461765,1752029455385,-460.0,0.00021095,2]
[370461766,1752029455396,-686.65,0.00021095,2]
[370461767,1752029455406,-460.0,0.00021095,2]
[370461768,1752029455417,-460.0,0.00021095,2]
[370461769,1752029455426,-460.0,0.00021095,2]
[370461770,1752029455436,-460.0,0.00021095,2]
[370461771,1752029455446,-1467.71,0.00021095,2]
[370461772,1752029455455,-460.0,0.00021095,2]
[370461773,1752029455464,-1539.37,0.00021095,2]
[370461774,1752029455476,-890.53,0.00021095,2]
[370461775,1752029455487,-2130.94,0.00021095,2]
[370461776,1752029455496,-529.48,0.00021095,2]
[370461777,1752029455506,-460.0,0.00021095,2]
[370461778,1752029455515,-1268.98,0.00021095,2]
[370461779,1752029455527,-619.65,0.00021095,2]
[370461780,1752029455538,-460.0,0.00021095,2]
[370461781,1752029455547,-2512.11,0.00021095,2]
[370461782,1752029455558,-682.29,0.00021095,2]
[370461783,1752029455568,-1065.93,0.00021095,2]
[370461784,1752029455578,-844.89,0.00021095,2]
[370461785,1752029455587,-495.22,0.00021095,2]
[370461786,1752029455596,-814.16,0.00021095,2]
[370461787,1752029455606,-460.0,0.00021095,2]
[370461788,1752029455616,-516.34907766,0.00021095,2]
[370461789,1752029455626,-460.0,0.00021095,2]
[370461790,1752029455636,-460.0,0.00021095,2]
[370461791,1752029455646,-772.56,0.00021095,2]
[370461792,1752029455656,-495.07,0.00021095,2]
[370461793,1752029455665,-460.0,0.00021095,2]
[370461794,1752029455674,-804.53,0.00021095,2]
[370461795,1752029455684,-508.66,0.00021095,2]
[370461796,1752029455693,-460.0,0.00021095,2]
[370461797,1752029455703,-1018.28,0.00021095,2]
[370461798,1752029455712,-460.0,0.00021095,2]
[370461799,1752029455723,-151.0,0.000211,4]
[370461800,1752029455735,-151.0,0.000211,3]
[370461801,1752029455745,-179.875072,0.00021107,4]
[370461802,1752029455755,-1000.0,0.00021121,2]
[370461803,1752029455765,-1000.0,0.00021121,2]
[370461804,1752029455775,-1000.0,0.00021121,2]
[370461805,1752029455786,-501.0501087,0.00021121,2]
[370461806,1752029455797,-502.71380269,0.00021121,2]
[370461807,1752029455807,-500.97922657,0.00021121,2]
[370461808,1752029455817,-505.12767136,0.00021121,2]
[370461809,1752029455826,-503.47881678,0.00021121,2]
[370461810,1752029455837,-4327.15712278,0.00021141,4]
[370461811,1752029455846,-500.0,0.0002115,14]
[370461812,1752029455856,-322.23856403,0.0002115,15]
[370461813,1752029455865,-429.891733,0.00021151,2]
[370461814,1752029455875,-159.5204994,0.00021233,2]
[370461815,1752029455885,-177.7959578,0.00021233,2]
[370461816,1752029455895,-159.3080174,0.00021233,2]
[370461817,1752029455905,-172.8253779,0.00021233,2]
[370461818,1752029455914,-157.75257912,0.00021233,2]
[370461819,1752029455926,-168.0,0.00021237,2]
[370461820,1752029455935,-429.891733,0.00021247,2]
[370461821,1752029455945,-168.0,0.00021253,2]
[370461822,1752029455954,-151.0,0.0002126,2]
[370461823,1752029455963,-470.4068617,0.0002126,2]
[370461824,1752029455973,-177.7370323,0.0002126,2]
[370461825,1752029455984,-159.4673789,0.0002126,2]
[370461826,1752029455995,-183.9999552,0.0002126,2]
[370461827,1752029456006,-321.3825544,0.0002126,2]
[370461828,1752029456015,-584.0320949,0.0002126,2]
[370461829,1752029456025,-154.6801145,0.0002126,2]
[370461830,1752029456035,-500.0,0.00021261,2]
[370461831,1752029456045,-151.0,0.00021261,2]
[370461832,1752029456054,-202.03352032,0.00021261,2]
[370461833,1752029456064,-151.0,0.00021261,2]
[370461834,1752029456073,-151.22157252,0.00021261,2]
[370461835,1752029456082,-151.0,0.00021261,2]
[370461836,1752029456091,-500.0,0.00021261,2]
[370461837,1752029456100,-500.54104326,0.00021288,2]
[370461838,1752029456110,-151.0,0.00021288,2]
[370461839,1752029456120,-151.0,0.00021288,2]
[370461840,1752029456130,-151.60978335,0.00021288,2]
[370461841,1752029456139,-500.0,0.00021288,2]
[370461842,1752029456149,-151.0,0.000213,4]
[370461843,1752029456159,-151.0,0.000213,3]
[370461844,1752029456169,-151.0,0.00021316,2]
[370461845,1752029456180,-151.0,0.00021316,2]
[370461846,1752029456189,-209.78734587,0.00021316,2]
[370461847,1752029456198,-429.891733,0.00021343,2]
[370461848,1752029456209,-247.62234683,0.00021343,2]
[370461849,1752029456220,-281.90042341,0.00021343,2]
[370461850,1752029456230,-4327.15712278,0.00021348,5]
[370461851,1752029456239,-1536.93213407,0.00021364,2]
[370461852,1752029456249,-393.72609004,0.00021369,2]
[370461853,1752029456259,-193.25243221,0.00021369,2]
[370461854,1752029456269,-772.2367191,0.00021369,2]
[370461855,1752029456278,-460.0,0.00021369,2]
[370461856,1752029456287,-314.98087203,0.00021369,2]
[370461857,1752029456296,-1258.66356462,0.00021369,2]
[370461858,1752029456307,-460.0,0.00021369,2]
[370461859,1752029456318,-460.0,0.00021369,2]
[370461860,1752029456327,-460.0,0.00021369,2]
[370461861,1752029456336,-573.72,0.00021369,2]
[370461862,1752029456347,-483.39,0.00021369,2]
[370461863,1752029456356,-460.0,0.00021369,2]
[370461864,1752029456366,-460.0,0.00021369,2]
[370461865,1752029456376,-460.0,0.00021369,2]
[370461866,1752029456386,-334.527495,0.00021369,2]
[370461867,1752029456397,-334.527495,0.00021369,2]
[370461868,1752029456406,-479.03,0.00021369,2]
[370461869,1752029456415,-460.0,0.00021369,2]
[370461870,1752029456425,-460.0,0.00021369,2]
[370461871,1752029456434,-812.99,0.00021369,2]
[370461872,1752029456445,-3032.81,0.00021369,2]
[370461873,1752029456455,-151.0,0.00021369,2]
[370461874,1752029456464,-2302.41,0.00021369,2]
[370461875,1752029456473,-1488.7,0.00021369,2]
[370461876,1752029456484,-460.0,0.00021369,2]
[370461877,1752029456495,-460.0,0.00021369,2]
[370461878,1752029456506,-460.0,0.00021369,2]
[370461879,1752029456518,-763.27,0.00021369,2]
[370461880,1752029456527,-460.0,0.00021369,2]
[370461881,1752029456536,-526.62,0.00021369,2]
[370461882,1752029456546,-460.0,0.00021369,2]
[370461883,1752029456555,-460.0,0.00021369,2]
[370461884,1752029456565,-686.65,0.00021369,2]
[370461885,1752029456574,-460.0,0.00021369,2]
[370461886,1752029456583,-460.0,0.00021369,2]
[370461887,1752029456593,-460.0,0.00021369,2]
[370461888,1752029456603,-1467.71,0.00021369,2]
[370461889,1752029456612,-460.0,0.00021369,2]
[370461890,1752029456623,-1539.37,0.00021369,2]
[370461891,1752029456632,-890.53,0.00021369,2]
[370461892,1752029456642,-2130.94,0.00021369,2]
[370461893,1752029456652,-529.48,0.00021369,2]
[370461894,1752029456662,-2829.380721,0.00021369,2]
[370461895,1752029456673,-327.636252,0.00021369,2]
[370461896,1752029456682,-460.0,0.00021369,2]
[370461897,1752029456692,-2829.380721,0.00021369,2]
[370461898,1752029456701,-1268.98,0.00021369,2]
[370461899,1752029456711,-327.636252,0.00021369,2]
[370461900,1752029456722,-619.65,0.00021369,2]
[370461901,1752029456732,-2512.11,0.00021369,2]
[370461902,1752029456743,-682.29,0.00021369,2]
[370461903,1752029456753,-1065.93,0.00021369,2]
[370461904,1752029456762,-844.89,0.00021369,2]
[370461905,1752029456772,-495.22,0.00021369,2]
[370461906,1752029456782,-814.16,0.00021369,2]
[370461907,1752029456793,-460.0,0.00021369,2]
[370461908,1752029456802,-460.0,0.00021369,2]
[370461909,1752029456812,-547.31580831,0.00021369,2]
[370461910,1752029456822,-772.56,0.00021369,2]
[370461911,1752029456831,-495.07,0.00021369,2]
[370461912,1752029456841,-460.0,0.00021369,2]
[370461913,1752029456851,-804.53,0.00021369,2]
[370461914,1752029456860,-508.66,0.00021369,2]
[370461915,1752029456871,-1018.28,0.00021369,2]
[370461916,1752029456881,-460.0,0.00021369,2]
[370461917,1752029456892,-151.0,0.00021398,2]
[370461918,1752029456903,-151.0,0.00021398,2]
[370461919,1752029456913,-151.0,0.00021398,2]
[370461920,1752029456922,-191.589992,0.00021398,2]
[370461921,1752029456932,-191.589992,0.00021398,2]
[370461922,1752029456941,-151.0,0.00021433,2]
[370461923,1752029456951,-151.0,0.00021433,2]
[370461924,1752029456960,-151.0,0.00021433,2]
[370461925,1752029456969,-429.891733,0.00021439,2]
[370461926,1752029456981,-168.0,0.00021444,2]
[370461927,1752029456990,-151.0,0.000215,3]
[370461928,1752029456999,-229571.22080734,0.00021503,4]
[370461929,1752029457798,-180.71994056,0.0001917,2]
[370461930,1752029457810,-242.34581622,0.00019178,2]
[370461931,1752029457820,-248.71361157,0.00019872,2]
[370461932,1752029457855,-189.94974156,0.00019872,2]
[370461933,1752029457866,-123.72458539,0.0002,2]
[370461934,1752029458464,-460.0,0.00019178,2]
[370461935,1752029458474,-460.0,0.00019178,2]
[370461936,1752029458484,-151.0,0.00019726,2]
[370461937,1752029458494,-336.27541461,0.0002,2]
[370461938,1752029458503,-151.0,0.0002,2]
[370461939,1752029458513,-63.00575895,0.00020268,2]
[370461941,1752029736801,431.84283,0.00013699,2]
[370461945,1752030133315,200.0,0.00015,2]
[370461946,1752030174817,7263.0,0.000181,9]
[370461948,1752030310851,44032.49117213,0.000181,9]
[370461949,1752030380898,50000.0,0.0001815,9]
[370461952,1752030538340,168.0,0.00027397,120]
[370461953,1752030596047,789.8952428,0.00027397,120]
[370461986,1752030637344,-359.4787567,0.00018506,2]
[370461989,1752030637353,-431.6388868,0.00018526,2]
[370461992,1752030637367,-255.57243791,0.00018526,2]
[370461996,1752030637400,-843.97085229,0.00018526,2]
[370461998,1752030637410,-290.26781119,0.000189,2]
[370462000,1752030637420,-328.9975149,0.00019078,2]
[370462002,1752030637431,-300.0,0.00019177,2]
[370462004,1752030637440,-230.50135154,0.00019177,2]
[370462006,1752030637450,-250.0,0.00019177,2]
[370462008,1752030637459,-460.0,0.00019178,2]
[370462010,1752030637468,-460.0,0.00019178,2]
[370462012,1752030637478,-460.0,0.00019178,2]
[370462014,1752030637489,-521.72386621,0.00019178,2]
[370462016,1752030637499,-464.38507739,0.00019178,2]
[370462018,1752030637509,-460.0,0.00019178,2]
[370462020,1752030637519,-461.93578747,0.00019178,2]
[370462022,1752030637528,-463.77233561,0.00019178,2]
[370462024,1752030637537,-464.63862494,0.00019178,2]
[370462026,1752030637547,-460.0,0.00019178,2]
[370462028,1752030637556,-460.0,0.00019178,2]
[370462030,1752030637565,-582.83788174,0.00019178,2]
[370462032,1752030637575,-460.0,0.00019178,2]
[370462034,1752030637585,-464.91090524,0.00019178,2]
[370462036,1752030637599,-464.33038493,0.00019178,2]
[370462038,1752030637608,-460.0,0.00019178,2]
[370462040,1752030637617,-461.39012995,0.00019178,2]
[370462042,1752030637627,-460.0,0.00019178,2]
[370462044,1752030637637,-461.91919022,0.00019178,2]
[370462046,1752030637647,-442.06792539,0.00019178,2]
[370462049,1752030637657,-460.0,0.00019178,2]
[370462051,1752030637668,-460.0,0.00019178,2]
[370462053,1752030637678,-460.0,0.00019178,2]
[370462055,1752030637688,-507.62193998,0.00019178,2]
[370462057,1752030637697,-460.0,0.00019178,2]
[370462059,1752030637707,-462.99342484,0.00019178,2]
[370462061,1752030637716,-460.0,0.00019178,2]
[370462063,1752030637726,-1003.30811176,0.00019178,2]
[370462065,1752030637736,-460.0,0.00019178,2]
[370462067,1752030637746,-460.0,0.00019178,2]
[370462069,1752030637756,-460.0,0.00019178,2]
[370462071,1752030637766,-460.0,0.00019178,2]
[370462073,1752030637776,-460.0,0.00019178,2]
[370462076,1752030637791,-460.0,0.00019178,2]
[370462077,1752030637800,-460.0,0.00019178,2]
[370462078,1752030637811,-460.0,0.00019178,2]
[370462080,1752030637822,-462.48384019,0.00019178,2]
[370462082,1752030637832,-462.02597472,0.00019178,2]
[370462084,1752030637842,-460.0,0.00019178,2]
[370462086,1752030637851,-330.51650834,0.00019178,2]
[370462088,1752030637861,-460.0,0.00019178,2]
[370462090,1752030637870,-460.0,0.00019178,2]
[370462092,1752030637880,-460.0,0.00019178,2]
[370462094,1752030637890,-455.35306929,0.00019178,2]
[370462096,1752030637899,-460.0,0.00019178,2]
[370462099,1752030637912,-460.0,0.00019178,2]
[370462112,1752030638077,-470.21360895,0.00019178,2]
[370462115,1752030638089,-471.29577535,0.00019178,2]
[370462117,1752030638100,-357.03367746,0.00019178,2]
[370462119,1752030638111,-460.0,0.00019178,2]
[370462121,1752030638120,-460.0,0.00019178,2]
[370462123,1752030638130,-460.0,0.00019178,2]
[370462124,1752030638140,-460.0,0.00019178,2]
[370462127,1752030638149,-460.0,0.00019178,2]
[370462129,1752030638159,-460.0,0.00019178,2]
[370462131,1752030638169,-223.44854796,0.00019178,2]
[370462133,1752030638179,-460.0,0.00019178,2]
[370462135,1752030638189,-585.81670603,0.00019178,2]
[370462137,1752030638199,-460.0,0.00019178,2]
[370462139,1752030638208,-464.09780581,0.00019178,2]
[370462141,1752030638218,-460.0,0.00019178,2]
[370462143,1752030638229,-460.0,0.00019178,2]
[370462145,1752030638239,-354.83557786,0.00019178,2]
[370462147,1752030638248,-460.0,0.00019178,2]
[370462149,1752030638258,-460.0,0.00019178,2]
[370462151,1752030638268,-460.0,0.00019178,2]
[370462153,1752030638278,-460.0,0.00019178,2]
[370462155,1752030638291,-460.0,0.00019178,2]
[370462157,1752030638301,-460.0,0.00019178,2]
[370462159,1752030638311,-460.0,0.00019178,2]
[370462161,1752030638320,-460.0,0.00019178,2]
[370462163,1752030638330,-309.80752306,0.00019178,2]
[370462165,1752030638340,-460.0,0.00019178,2]
[370462167,1752030638349,-318.13801794,0.00019178,2]
[370462169,1752030638359,-844.48,0.00019178,2]
[370462171,1752030638369,-460.0,0.00019178,2]
[370462173,1752030638378,-333.32018466,0.00019178,2]
[370462175,1752030638388,-460.0,0.00019178,2]
[370462177,1752030638398,-460.0,0.00019178,2]
[370462179,1752030638407,-648.07,0.00019178,2]
[370462181,1752030638417,-460.0,0.00019178,2]
[370462183,1752030638426,-460.0,0.00019178,2]
[370462185,1752030638436,-792.68,0.00019178,2]
[370462187,1752030638445,-460.0,0.00019178,2]
[370462190,1752030638455,-460.0,0.00019178,2]
[370462191,1752030638465,-540.47,0.00019178,2]
[370462194,1752030638474,-623.43,0.00019178,2]
[370462196,1752030638486,-460.0,0.00019178,2]
[370462198,1752030638496,-460.0,0.00019178,2]
[370462200,1752030638506,-463.85438531,0.00019178,2]
[370462202,1752030638515,-460.0,0.00019178,2]
[370462204,1752030638525,-490.56,0.00019178,2]
[370462206,1752030638535,-460.0,0.00019178,2]
[370462208,1752030638544,-483.04706673,0.00019178,2]
[370462210,1752030638554,-460.0,0.00019178,2]
[370462212,1752030638564,-460.0,0.00019178,2]
[370462214,1752030638573,-460.0,0.00019178,2]
[370462216,1752030638585,-460.0,0.00019178,2]
[370462218,1752030638597,-473.43034304,0.00019178,2]
[370462220,1752030638607,-462.72937087,0.00019178,2]
[370462222,1752030638617,-460.0,0.00019178,2]
[370462224,1752030638626,-601.1,0.00019178,2]
[370462226,1752030638637,-484.63188212,0.00019178,2]
[370462228,1752030638646,-460.0,0.00019178,2]
[370462230,1752030638656,-510.34579795,0.00019178,2]
[370462233,1752030638667,-460.0,0.00019178,2]
[370462235,1752030638677,-1963.24,0.00019178,2]
[370462237,1752030638687,-460.0,0.00019178,2]
[370462239,1752030638696,-460.0,0.00019178,2]
[370462241,1752030638706,-460.0,0.00019178,2]
[370462243,1752030638716,-470.1302288,0.00019178,2]
[370462245,1752030638725,-460.0,0.00019178,2]
[370462247,1752030638735,-460.0,0.00019178,2]
[370462249,1752030638744,-460.0,0.00019178,2]
[370462251,1752030638754,-460.0,0.00019178,2]
[370462253,1752030638764,-460.0,0.00019178,2]
[370462255,1752030638773,-1140.04,0.00019178,2]
[370462257,1752030638783,-252.36822477,0.00019178,2]
[370462259,1752030638792,-450.39442712,0.00019178,2]
[370462262,1752030638810,-9.60557288,0.00019178,2]
[370462264,1752030638820,-460.0,0.00019178,2]
[370462266,1752030638830,-460.0,0.00019178,2]
[370462268,1752030638839,-270.7790035,0.00019178,2]
[370462270,1752030638849,-460.0,0.00019178,2]
[370462272,1752030638858,-460.0,0.00019178,2]
[370462274,1752030638867,-460.0,0.00019178,2]
[370462276,1752030638878,-460.0,0.00019178,2]
[370462278,1752030638887,-1309.24,0.00019178,2]
[370462280,1752030638897,-460.0,0.00019178,2]
[370462282,1752030638906,-1242.26,0.00019178,2]
[370462284,1752030638915,-544.03545065,0.00019178,2]
[370462286,1752030638924,-370.11123508,0.00019178,2]
[370462288,1752030638934,-708.77,0.00019178,2]
[370462290,1752030638943,-568.58,0.00019178,2]
[370462292,1752030638952,-460.0,0.00019178,2]
[370462294,1752030638962,-460.0,0.00019178,2]
[370462296,1752030638971,-1810.72,0.00019178,2]
[370462298,1752030638981,-470.74232701,0.00019178,2]
[370462300,1752030638991,-460.0,0.00019178,2]
[370462302,1752030639000,-665.57,0.00019178,2]
[370462304,1752030639010,-460.0,0.00019178,2]
[370462306,1752030639019,-944.45,0.00019178,2]
[370462308,1752030639030,-460.0,0.00019178,2]
[370462310,1752030639040,-460.0,0.00019178,2]
[370462312,1752030639049,-2201.33,0.00019178,2]
[370462314,1752030639060,-460.0,0.00019178,2]
[370462316,1752030639069,-460.0,0.00019178,2]
[370462318,1752030639079,-460.0,0.00019178,2]
[370462320,1752030639089,-460.0,0.00019178,2]
[370462322,1752030639099,-465.38473366,0.00019178,2]
[370462324,1752030639108,-462.23267738,0.00019178,2]
[370462326,1752030639117,-460.0,0.00019178,2]
[370462328,1752030639127,-460.0,0.00019178,2]
[370462330,1752030639137,-460.0,0.00019178,2]
[370462334,1752030639160,-460.0,0.00019178,2]
[370462336,1752030639170,-460.0,0.00019178,2]
[370462338,1752030639180,-599.70417561,0.00019178,2]
[370462340,1752030639190,-460.0,0.00019178,2]
[370462342,1752030639200,-460.0,0.00019178,2]
[370462344,1752030639210,-493.89,0.00019178,2]
[370462346,1752030639220,-716.8,0.00019178,2]
[370462348,1752030639231,-460.0,0.00019178,2]
[370462350,1752030639241,-460.0,0.00019178,2]
[370462352,1752030639252,-460.0,0.00019178,2]
[370462354,1752030639262,-460.0,0.00019178,2]
[370462356,1752030639272,-460.0,0.00019178,2]
[370462358,1752030639282,-460.0,0.00019178,2]
[370462360,1752030639292,-460.0,0.00019178,2]
[370462362,1752030639302,-2497.07,0.00019178,2]
[370462364,1752030639312,-460.0,0.00019178,2]
[370462366,1752030639323,-460.0,0.00019178,2]
[370462368,1752030639333,-460.0,0.00019178,2]
[370462371,1752030639343,-460.0,0.00019178,2]
[370462373,1752030639354,-460.0,0.00019178,2]
[370462375,1752030639364,-817.54,0.00019178,2]
[370462376,1752030639374,-460.0,0.00019178,2]
[370462378,1752030639383,-460.0,0.00019178,2]
[370462380,1752030639395,-460.0,0.00019178,2]
[370462383,1752030639407,-460.0,0.00019178,2]
[370462385,1752030639417,-460.0,0.00019178,2]
[370462387,1752030639427,-460.0,0.00019178,2]
[370462389,1752030639437,-460.0,0.00019178,2]
[370462391,1752030639447,-1321.78,0.00019178,2]
[370462393,1752030639458,-302.94956916,0.00019178,2]
[370462395,1752030639470,-666.0,0.00019178,2]
[370462397,1752030639480,-220.064534,0.00019178,2]
[370462399,1752030639491,-257.00546838,0.00019279,2]
[370462401,1752030639501,-752.41,0.00019442,3]
[370462403,1752030639511,-376.19,0.00019442,3]
[370462406,1752030639521,-188.1,0.00019442,3]
[370462408,1752030639531,-564.3,0.00019442,3]
[370462410,1752030639541,-391.39337977,0.00019452,2]
[370462412,1752030639551,-460.0,0.00019452,2]
[370462414,1752030639560,-460.0,0.00019452,2]
[370462416,1752030639570,-396.4485329,0.00019452,2]
[370462418,1752030639579,-460.0,0.00019452,2]
[370462419,1752030639591,-460.0,0.00019452,2]
[370462421,1752030639601,-460.0,0.00019452,2]
[370462423,1752030639610,-469.84557706,0.00019452,2]
[370462426,1752030639621,-460.0,0.00019452,2]
[370462428,1752030639632,-468.82166914,0.00019452,2]
[370462430,1752030639642,-460.0,0.00019452,2]
[370462432,1752030639651,-460.0,0.00019452,2]
[370462434,1752030639662,-460.0,0.00019452,2]
[370462436,1752030639672,-460.0,0.00019452,2]
[370462438,1752030639683,-464.63392845,0.00019452,2]
[370462440,1752030639692,-460.0,0.00019452,2]
[370462442,1752030639702,-460.0,0.00019452,2]
[370462444,1752030639712,-460.0,0.00019452,2]
[370462446,1752030639722,-460.0,0.00019452,2]
[370462448,1752030639732,-460.0,0.00019452,2]
[370462450,1752030639742,-460.0,0.00019452,2]
[370462452,1752030639751,-460.0,0.00019452,2]
[370462455,1752030639762,-460.0,0.00019452,2]
[370462457,1752030639776,-460.0,0.00019452,2]
[370462459,1752030639785,-460.0,0.00019452,2]
[370462461,1752030639794,-460.0,0.00019452,2]
[370462463,1752030639804,-460.0,0.00019452,2]
[370462465,1752030639814,-460.0,0.00019452,2]
[370462467,1752030639823,-460.0,0.00019452,2]
[370462469,1752030639833,-460.0,0.00019452,2]